[Event "MCCT Chessable Masters 2022"]
[Site "Online"]
[Date "2022.05.16"]
[Round "5.1"]
[White "Praggnanandhaa R"]
[Black "Carlsen, Magnus"]
[Result "1-0"]
[ECO "C77"]
[WhiteElo "2642"]
[BlackElo "2864"]
[Annotator "TA"]
[PlyCount "81"]
[EventDate "2022.05.19"]
[EventType "tourn"]
[EventCountry "NET"]
[SourceTitle "playchess.com"]
[Source "ChessBase"]
[SourceQuality "1"]
[TimeControl "900+10"]

{[%evp 13,81,16,18,14,11,22,22,17,45,28,36,37,41,35,39,36,75,72,70,67,76,13,28,13,39,18,7,13,0,0,27,4,10,14,5,16,17,0,0,0,49,55,31,46,55,20,20,24,29,20,20,21,34,0,0,0,0,0,0,0,0,0,0,0,0,0,0,0,664,626]} 1. e4 {[%emt 0:00:00]} e5 {[%emt 0:00:00]} 2. Nf3 {[%emt 0:00:02]} Nc6 {[%emt 0:00:06]} 3. Bb5 {[%emt 0:00:02][%cal Bf1b5,Bb5a4,Ba4b3][%mdl 32]} a6 {[%emt 0:00:28]} 4. Ba4 {[%emt 0:00:03]} Nf6 {[%emt 0:00:08]} 5. d3 {[%emt 0:00:10]} Bc5 {[%emt 0:00:30]} 6. c3 {[%emt 0:00:03]} b5 {[%emt 0:00:42]} 7. Bb3 {[%emt 0:00:05]} d6 {[%emt 0:00:08]} 8. Bg5 {[%emt 0:00:16][%cal Bc1g5,Bg5h4,Bh4g3][%mdl 32] C77: Ruy Lopez: 3...a6 4 Ba4 Nf6, unusual lines.} h6 {[%emt 0:00:02]} 9. Bh4 {[%emt 0:00:03]} Bb6 {[%emt 0:00:24]} 10. a4 {[%emt 0:00:13] The position is equal.} Rb8 {[%emt 0:00:15]} 11. axb5 {[%emt 0:00:32]} axb5 {[%emt 0:00:01]} 12. Na3 {[%emt 0:00:13]} g5 {[%emt 0:01:37]} 13. Bg3 {[%emt 0:00:04] [#]} Na5 $146 {[%emt 0:00:06]} ({Predecessor:} 13... Bc5 14. Nc2 Bb6 15. Qe2 Qe7 16. Nd2 Bg4 17. f3 Be6 18. Bf2 Bxb3 19. Nxb3 Qe6 {1-0 (74) Terao,R (2317)-Dos Santos,H (2205) Curitiba 2010}) 14. Bc2 {[%emt 0:02:10]} (14. Nxb5 Nxb3 15. Qxb3 g4 $17) 14... b4 {[%emt 0:00:04]} 15. cxb4 {[%emt 0:00:24]} Nc6 {[%emt 0:00:01]} 16. Ba4 {[%emt 0:01:32]} Bd7 {[%emt 0:00:02]} 17. Nc4 {[%emt 0:01:40]} (17. Nc2 $16) 17... Nxb4 $11 {[%emt 0:03:10]} 18. Bxd7+ {[%emt 0:00:03]} Nxd7 {[%emt 0:00:02]} 19. O-O {[%emt 0:00:01]} O-O {[%emt 0:01:04]} 20. Nxb6 {[%emt 0:01:32]} Rxb6 {[%emt 0:00:05]} ({But not} 20... Nxb6 21. d4 $16) 21. d4 {[%emt 0:00:01][%cal Rd4e5] Inhibits Nc5.} Nc6 {[%emt 0:01:48]} 22. Rc1 {[%emt 0:03:01][%cal Ob2b4]} Nxd4 {[%emt 0:02:25]} 23. Nxd4 {[%emt 0:00:04]} exd4 {[%emt 0:00:00]} 24. Qxd4 {[%emt 0:00:01]} Nc5 {[%emt 0:00:49]} 25. Rcd1 {[%emt 0:02:09][%cal Bc1d1,Bd1d4,Bd4c4][%mdl 32]} Ne6 {[%emt 0:00:38]} 26. Qc3 {[%emt 0:00:10]} f6 {[%emt 0:01:57]} (26... Qa8 $11) 27. f4 $14 {[%emt 0:03:15]} Qe7 {[%emt 0:00:07]} 28. b4 {[%emt 0:00:15]} Rbb8 {[%emt 0:02:17]} 29. f5 {[%emt 0:00:57]} Nd8 {[%emt 0:00:22][%cal Be6d8,Bd8f7,Bf7e5][%mdl 32]} 30. Rd4 {[%emt 0:00:03]} Nf7 {[%emt 0:00:25]} 31. Rc4 {[%emt 0:00:10]} Rb7 {[%emt 0:00:06]} 32. Rc1 {[%emt 0:00:05][%cal Rc4c7]} Rfb8 {[%emt 0:00:07]} 33. h4 {[%emt 0:00:45]} gxh4 {[%emt 0:00:19]} 34. Bxh4 {[%emt 0:00:05]} Ne5 {[%emt 0:00:00]} 35. Rxc7 {[%emt 0:00:32]} Rxc7 {[%emt 0:00:02]} 36. Qxc7 {[%emt 0:00:00]} Qxc7 {[%emt 0:00:00]} 37. Rxc7 {[%emt 0:00:01]} Rxb4 $11 {[%emt 0:00:01] KRB-KRN} 38. Re7 {[%emt 0:00:31]} ({Not} 38. Bxf6 $2 Rb1+ 39. Kf2 Ng4+ 40. Kf3 Nxf6 $19) 38... d5 {[%emt 0:00:29]} 39. Kf1 {[%emt 0:00:01]} ({Of course not} 39. Bxf6 Rb1+ 40. Kf2 Ng4+ 41. Ke2 Nxf6 $19) 39... dxe4 {[%emt 0:00:40]} 40. Bxf6 {[%emt 0:00:08]} Ng4 {[%emt 0:00:10][%mdl 8192] [#]} (40... Nd3 $11) 41. Rg7+ {[%emt 0:00:06] Weighted Error Value: White=0.08 (flawless) /Black=0.31} 1-0

[Event "MCCT Chessable Masters 2022"]
[Site "Online"]
[Date "2022.05.16"]
[Round "5.2"]
[White "Harikrishna, Pentala"]
[Black "Grandelius, Nils"]
[Result "1/2-1/2"]
[ECO "D00"]
[WhiteElo "2705"]
[BlackElo "2635"]
[Annotator "TA"]
[PlyCount "117"]
[EventDate "2022.05.19"]
[EventType "tourn"]
[EventCountry "NET"]
[SourceTitle "playchess.com"]
[Source "ChessBase"]
[SourceQuality "1"]
[TimeControl "900+10"]

{[%evp 9,117,0,0,0,0,0,-14,0,7,0,0,-10,-6,-4,0,-5,55,-34,-35,-27,-33,-37,-29,-27,-39,-33,-14,-97,-109,-108,-85,-93,-91,-129,-124,-129,-128,-131,-133,-127,-131,-157,-116,-116,-114,-122,-116,-117,-104,-115,-115,-108,-100,-115,-115,-115,-110,-115,-115,-116,-115,-115,-115,-115,-115,-123,-115,-115,-115,-137,-129,-137,-123,-137,-123,-137,-123,-137,-123,-137,-130,-137,-137,-137,0,-137,-137,-137,-137,-137,-87,-87,-87,-87,-87,-87,0,-10,0,-87,-87,-87,-64,-64,-8,-8,0,-87,0,-12]} 1. d4 {[%emt 0:00:00]} Nf6 {[%emt 0:00:00]} 2. Nf3 {[%emt 0:00:02]} g6 {[%emt 0:00:07]} 3. Nc3 {[%emt 0:00:12]} d5 {[%emt 0:00:11]} 4. Bf4 {[%emt 0:00:02]} Bg7 {[%emt 0:00:02]} 5. e3 {[%emt 0:00:10]} O-O {[%emt 0:00:06][%cal Oc7c5]} 6. Nb5 {[%emt 0:00:09] D00: 1 d4 d5: Unusual lines.} Na6 {[%emt 0:00:07]} 7. h3 {[%emt 0:00:08]} Ne4 {[%emt 0:00:18]} 8. Nd2 {[%emt 0:00:46]} c6 {[%emt 0:00:17]} 9. Nxe4 {[%emt 0:00:05]} dxe4 {[%emt 0:00:00]} 10. Nc3 {[%emt 0:00:03]} c5 {[%emt 0:00:04][%cal Rc5d4] [#]} 11. Nxe4 $146 {[%emt 0:00:15]} ({Predecessor:} 11. d5 Qb6 12. Rb1 Rd8 13. Nxe4 Qa5+ 14. Nd2 Rxd5 15. e4 Rd8 16. Bc4 e6 17. Bg5 {0-1 (37) Almeida Quintana,O (2539)-Espinosa Veloz,E (2486) Villa Clara 2020}) 11... cxd4 {[%emt 0:00:03]} 12. exd4 {[%emt 0:00:03]} Nb4 {[%emt 0:00:16]} (12... Qd5 $11 13. Nc3 Qf5) 13. Be3 {[%emt 0:05:45] [#]} (13. c3 $14 Bf5 14. f3 (14. cxb4 Bxe4 15. Be3 e5 $17)) 13... Bxd4 $1 $15 {[%emt 0:04:18]} 14. a3 {[%emt 0:00:33]} ({Much weaker is} 14. Bxd4 Qxd4 $1 15. f3 Be6 $1 16. Qxd4 Nxc2+ 17. Kf2 Nxd4 $17) 14... Bxe3 {[%emt 0:00:14]} 15. axb4 {[%emt 0:00:02]} Bh6 {[%emt 0:01:09]} 16. Bd3 {[%emt 0:00:28]} Qb6 {[%emt 0:01:19]} 17. c3 {[%emt 0:00:10]} Bf5 {[%emt 0:00:15]} 18. Nc5 {[%emt 0:01:59]} (18. O-O $11 {keeps the balance.}) 18... Rfd8 $17 {[%emt 0:00:45] White must now prevent ...Bxd3.} 19. Qe2 {[%emt 0:00:12]} Bxd3 {[%emt 0:01:03]} 20. Nxd3 {[%emt 0:00:09]} Qb5 {[%emt 0:00:22]} 21. Rd1 {[%emt 0:02:47]} a5 {[%emt 0:01:23] ...Rd6 is the strong threat.} 22. O-O {[%emt 0:01:58]} axb4 {[%emt 0:00:03]} 23. Qe4 {[%emt 0:00:26]} bxc3 {[%emt 0:00:33]} 24. bxc3 {[%emt 0:00:01]} Rac8 {[%emt 0:01:56]} 25. Ne5 {[%emt 0:00:58]} Bg7 {[%emt 0:00:44]} 26. Nf3 {[%emt 0:00:08]} Bxc3 {[%emt 0:01:53]} 27. Rxd8+ {[%emt 0:00:59]} Rxd8 {[%emt 0:00:00][%cal Bc8d8,Bd8d5,Bd5a5][%mdl 32]} 28. Rb1 {[%emt 0:00:12]} Qd5 {[%emt 0:01:55]} (28... Qc6 {feels hotter.} 29. Qxe7 Rd7 30. Qe8+ Kg7) 29. Qxd5 {[%emt 0:00:15]} Rxd5 {[%emt 0:00:01]} 30. Rxb7 {[%emt 0:00:00][%mdl 4096] Endgame KRB-KRN} e6 {[%emt 0:00:11]} 31. g4 {[%emt 0:00:18]} h6 {[%emt 0:00:07]} 32. Kg2 {[%emt 0:00:04]} Kg7 {[%emt 0:00:00]} 33. Rc7 {[%emt 0:00:06]} Bf6 {[%emt 0:00:10]} 34. Rc2 {[%emt 0:00:02]} Ra5 {[%emt 0:00:05]} 35. Nd2 {[%emt 0:00:01]} Bg5 {[%emt 0:00:17]} 36. Ne4 {[%emt 0:00:05]} Bf4 {[%emt 0:00:02]} 37. Rb2 {[%emt 0:00:22]} g5 {[%emt 0:00:25]} 38. Rb7 {[%emt 0:00:06]} Kg6 {[%emt 0:00:05]} 39. Rb2 {[%emt 0:00:05]} Ra4 {[%emt 0:00:17]} 40. Kf3 {[%emt 0:00:08]} Ra1 {[%emt 0:00:09]} 41. Kg2 {[%emt 0:00:16] Prevents Rh1.} Re1 {[%emt 0:00:02]} 42. Nc5 {[%emt 0:00:11]} Rd1 {[%emt 0:00:13]} 43. Ne4 {[%emt 0:00:13]} Rd4 {[%emt 0:00:04]} 44. Kf3 {[%emt 0:00:02]} h5 {[%emt 0:00:14]} 45. Ra2 {[%emt 0:00:33]} Rd3+ {[%emt 0:00:22]} 46. Kg2 {[%emt 0:00:01]} Rd4 {[%emt 0:00:00]} 47. Kf3 {[%emt 0:00:07]} Rb4 {[%emt 0:00:16]} 48. Ra8 {[%emt 0:00:07]} Rb3+ {[%emt 0:00:19]} 49. Kg2 {[%emt 0:00:02]} hxg4 {[%emt 0:00:05]} (49... h4 $142 50. Rg8+ Kh6) 50. hxg4 {[%emt 0:00:01]} Kg7 {[%emt 0:00:17]} 51. Ra5 {[%emt 0:00:07] [#]} Rb4 $1 {[%emt 0:00:10]} 52. Kf3 {[%emt 0:00:10]} Rb3+ {[%emt 0:00:06]} (52... Kg6 $17 53. Ra8 Rb8) 53. Kg2 $1 $11 {[%emt 0:00:03]} Rb4 {[%emt 0:00:02]} (53... Rb2 $11) 54. Kf3 $1 $17 {[%emt 0:00:01]} Kg6 {[%emt 0:00:04]} 55. Ra8 {[%emt 0:00:02]} Bb8 {[%emt 0:00:06]} 56. Ra5 {[%emt 0:00:05]} Rb3+ {[%emt 0:00:33]} ({Black should try} 56... f6 $15) 57. Kg2 $1 $11 {[%emt 0:00:04]} Bf4 {[%emt 0:00:01]} (57... f5 $11 58. Nc5 Rb2) 58. Ra8 $1 $17 {[%emt 0:00:03]} Kg7 {[%emt 0:00:12] Inhibits Rg8+.} ({Better is} 58... Rb2 $17 59. Ra5 Rb3) 59. Ra5 {[%emt 0:00:01] Weighted Error Value: White=0.09 (flawless) /Black=0.17 (very precise)} 1/2-1/2

[Event "MCCT Chessable Masters 2022"]
[Site "Online"]
[Date "2022.05.16"]
[Round "5.3"]
[White "Jones, Gawain C B"]
[Black "Tari, Aryan"]
[Result "1/2-1/2"]
[ECO "B12"]
[WhiteElo "2669"]
[BlackElo "2654"]
[Annotator "TA"]
[PlyCount "114"]
[EventDate "2022.05.19"]
[EventType "tourn"]
[EventCountry "NET"]
[SourceTitle "playchess.com"]
[Source "ChessBase"]
[SourceQuality "1"]
[TimeControl "900+10"]

{[%evp 9,114,0,0,-27,12,10,13,0,0,-6,12,-1,0,0,0,-8,0,-24,-24,-97,-103,-128,-155,-112,-8,-52,-43,-45,-64,-47,-20,-27,-20,-90,-83,-64,-53,-62,-62,-99,-99,-100,-100,-110,-57,-53,-60,-116,-112,-112,-102,-241,-242,-237,-215,-233,-189,-196,-196,-196,-195,-195,-196,-189,-185,-207,-207,-218,-218,-214,-151,-142,-116,-83,0,-153,-130,-124,-41,-43,-52,-66,0,0,0,-85,-8,-8,-8,-8,-8,-8,-8,-8,0,-7,0,0,0,0,0,0,0,0,0,0,0]} 1. e4 {[%emt 0:00:00][%cal Be2e4,Be4e5][%mdl 32]} c6 {[%emt 0:00:00]} 2. d4 {[%emt 0:00:11]} d5 {[%emt 0:00:04]} 3. e5 {[%emt 0:00:02]} Bf5 {[%emt 0:00:02]} 4. g4 {[%emt 0:00:03]} Be4 {[%emt 0:00:22]} 5. f3 {[%emt 0:00:02]} Bg6 {[%emt 0:00:01]} 6. e6 {[%emt 0:00:04] B12: Caro-Kann: Advance Variation.} Qd6 {[%emt 0:00:26]} 7. exf7+ $1 {[%emt 0:00:05]} Bxf7 {[%emt 0:00:00]} 8. Nc3 $1 {[%emt 0:00:02][%mdl 4] outshines the older 8.f4.} Nd7 {[%emt 0:00:09]} 9. f4 {[%emt 0:00:16] Inhibits e5.} g5 {[%emt 0:00:48] [#]} 10. Nh3 $146 {[%emt 0:02:08]} ({Predecessor:} 10. fxg5 O-O-O 11. Be3 Bg7 12. Qd2 e5 13. O-O-O Ne7 14. Nf3 Rhf8 15. Bh3 Ng6 16. Rhf1 {0-1 (71) Nihal,S (2620)-Abdusattorov,N (2634) chess24.com INT 2021}) 10... gxf4 {[%emt 0:04:12]} 11. Bxf4 {[%emt 0:00:03]} e5 $1 {[%emt 0:00:11]} 12. dxe5 {[%emt 0:00:05]} Nxe5 {[%emt 0:00:12]} 13. Qe2 {[%emt 0:02:45]} Bg7 {[%emt 0:00:03]} 14. Bg2 {[%emt 0:00:06]} (14. O-O-O $11 Ne7 15. Ne4 (15. Re1 N7g6 $17)) 14... Ne7 $17 {[%emt 0:00:41]} 15. O-O-O {[%emt 0:00:44]} O-O {[%emt 0:01:12]} 16. Ne4 {[%emt 0:02:48]} Qb4 {[%emt 0:02:00]} ({Black should play} 16... Qc7 $1 $17 17. Ng3 N7g6) 17. Nf6+ {[%emt 0:01:26]} Bxf6 {[%emt 0:00:04]} 18. Bxe5 {[%emt 0:00:00]} Bxe5 {[%emt 0:01:44]} 19. Qxe5 {[%emt 0:00:00]} Ng6 {[%emt 0:00:00]} (19... Qxg4 $2 20. Qxe7 Bg6 21. Rd2 $18) 20. Qg3 {[%emt 0:00:25]} Be6 {[%emt 0:00:22]} 21. Bf3 {[%emt 0:00:27] [#]} (21. Rhg1 $11 {remains equal.}) 21... Rxf3 $1 {[%emt 0:00:56]} 22. Qxf3 {[%emt 0:00:02] Rhg1 is the strong threat.} Bxg4 {[%emt 0:00:01]} 23. Qe3 {[%emt 0:00:22] Hoping for Rdf1.} Bxd1 {[%emt 0:00:03]} 24. Qe6+ {[%emt 0:00:05]} Kg7 {[%emt 0:00:06]} 25. Rxd1 {[%emt 0:00:32]} Qe7 $36 {[%emt 0:00:28][%mdl 2048] Black is really pushing.} 26. Qg4 {[%emt 0:00:15]} Kg8 {[%emt 0:02:11]} (26... Qe3+ $17 27. Kb1 Re8) 27. Ng5 {[%emt 0:00:36]} Rf8 {[%emt 0:00:08]} 28. h4 {[%emt 0:00:07]} (28. Kb1 $15) 28... Rf4 {[%emt 0:00:42]} 29. Qc8+ {[%emt 0:00:03]} Nf8 {[%emt 0:00:00]} 30. Kb1 {[%emt 0:01:50]} (30. Nf3 $17) 30... Qe2 $19 {[%emt 0:00:15][%cal Re2d1]} (30... Rxh4 31. Ne6 Qxe6 32. Rg1+ Kf7 33. Rf1+ Kg7 34. Rg1+ Kf7 35. Rf1+ Kg7 36. Rg1+ Kf7 $11) 31. Rc1 {[%emt 0:00:06]} Rf1 {[%emt 0:00:17] ( -> ...Rxc1+)} 32. b3 {[%emt 0:00:09]} Rxc1+ {[%emt 0:00:05]} 33. Kxc1 {[%emt 0:00:01]} h6 {[%emt 0:00:44]} 34. Qxb7 {[%emt 0:02:04] Threatening mate with Qf7+.} hxg5 {[%emt 0:00:03]} 35. hxg5 {[%emt 0:00:01][%mdl 4096] Endgame} Qe3+ {[%emt 0:00:02]} 36. Kb1 {[%emt 0:00:03]} Qb6 {[%emt 0:00:24]} ({Stronger than} 36... Qxg5 37. Qxa7 Qe5 38. a4 $17) 37. Qe7 {[%emt 0:00:12]} Qg1+ {[%emt 0:00:05]} 38. Kb2 {[%emt 0:00:01]} Qd4+ {[%emt 0:00:00]} 39. Kb1 {[%emt 0:00:12]} a5 {[%emt 0:00:18]} 40. a4 {[%emt 0:00:04]} Qd1+ {[%emt 0:00:24]} 41. Kb2 {[%emt 0:00:01]} Qd4+ {[%emt 0:00:00]} (41... Qg4 $142 42. Qc5 Qxg5 43. Qxa5 Qg7+ 44. Qc3 Ne6) 42. Kb1 $1 $17 {[%emt 0:00:01]} Qc3 {[%emt 0:00:31]} 43. Qc7 {[%emt 0:00:40] [#]} c5 {[%emt 0:00:46]} ({Better is} 43... Qc5 $1 $17 {aiming for ...d4.} 44. Qe5 Qa7) 44. Qd6 $15 {[%emt 0:01:06]} Qd4 {[%emt 0:00:09]} 45. Qb6 {[%emt 0:00:06]} Qc3 {[%emt 0:00:44]} ({Black should try} 45... Qg1+ $15 46. Kb2 Qxg5 47. Qxc5 Qd8) 46. Qd6 $1 $11 {[%emt 0:00:02]} Qd4 {[%emt 0:00:21]} (46... Qe1+ $11 47. Kb2 Kf7) 47. Qb6 $1 $17 {[%emt 0:00:02]} Qd1+ {[%emt 0:00:26]} (47... Qg1+ $17 48. Kb2 Qxg5 49. Qxc5 Qd8) 48. Kb2 $11 {[%emt 0:00:01] The position is equal.} c4 {[%emt 0:00:02]} 49. bxc4 {[%emt 0:00:16]} dxc4 {[%emt 0:00:09] next ...Qd5 is good for Black.} 50. Qxa5 {[%emt 0:00:14]} Qd4+ {[%emt 0:00:02]} 51. Qc3 {[%emt 0:00:04]} Qd5 {[%emt 0:00:09]} 52. Qf6 {[%emt 0:00:33]} Qa5 {[%emt 0:00:10]} 53. g6 {[%emt 0:00:13]} Qb4+ {[%emt 0:00:04]} 54. Kc1 {[%emt 0:00:02] White wants to mate with Qf7+.} Qe1+ {[%emt 0:00:16]} 55. Kb2 {[%emt 0:00:01] Intending Qf7+ and mate. Dancing on a razor blade.} Qb4+ {[%emt 0:00:00]} 56. Kc1 {[%emt 0:00:01] White threatens Qf7+ and mate.} Qe1+ {[%emt 0:00:22]} 57. Kb2 {[%emt 0:00:01] Qf7+ would kill now.} Qb4+ {[%emt 0:00:00] White happily takes the draw.  Weighted Error Value: White=0.14 (very precise) /Black=0.14 (very precise)} 1/2-1/2

[Event "MCCT Chessable Masters 2022"]
[Site "Online"]
[Date "2022.05.16"]
[Round "5.4"]
[White "Anton Guijarro, David"]
[Black "Giri, Anish"]
[Result "1/2-1/2"]
[ECO "B50"]
[WhiteElo "2691"]
[BlackElo "2761"]
[Annotator "TA"]
[PlyCount "82"]
[EventDate "2022.05.19"]
[EventType "tourn"]
[EventCountry "NET"]
[SourceTitle "playchess.com"]
[Source "ChessBase"]
[SourceQuality "1"]
[TimeControl "900+10"]

{[%evp 13,82,0,16,0,17,4,25,28,27,26,24,26,40,41,44,4,22,0,18,24,23,0,0,0,0,0,35,-39,-29,-45,-17,-66,-66,-68,-68,-68,-50,-49,-40,-43,-45,-70,-42,-114,-102,-119,-94,-156,-103,-95,-98,-100,-89,-107,-92,-109,-111,-134,-100,-115,0,-74,-83,-81,-26,-32,0,-84,0,-29,0]} 1. e4 {[%emt 0:00:00]} c5 {[%emt 0:00:00]} 2. Nf3 {[%emt 0:00:03]} d6 {[%emt 0:00:02]} 3. c3 {[%emt 0:00:05]} Nf6 {[%emt 0:00:02]} 4. Be2 {[%emt 0:00:02]} g6 {[%emt 0:00:23]} 5. O-O {[%emt 0:00:04]} Bg7 {[%emt 0:00:01]} 6. Bb5+ {[%emt 0:00:08]} Bd7 {[%emt 0:01:05]} 7. Bxd7+ {[%emt 0:00:06]} Nbxd7 {[%emt 0:00:27]} ({Don't play} 7... Kxd7 8. Qb3 $16) 8. Qe2 {[%emt 0:00:27] B50: Sicilian: 2...d6, Miscellaneous.} O-O {[%emt 0:00:22]} 9. d4 {[%emt 0:00:08]} cxd4 {[%emt 0:01:05]} 10. cxd4 {[%emt 0:00:03] White has an edge.} Nb6 {[%emt 0:00:01]} 11. Nc3 {[%emt 0:00:46]} Rc8 {[%emt 0:00:03]} 12. Rd1 {[%emt 0:00:31] [#]} Qc7 $146 {[%emt 0:00:19]} ({Predecessor:} 12... h6 13. h3 Qc7 14. Bf4 Qc4 15. Rd3 Nfd7 16. Qd2 Kh7 17. Be3 f5 18. e5 f4 19. Bxf4 Rxf4 20. Qxf4 Qxd3 21. exd6 {0-1 (46) Nassar,M (1889)-Najjar,A (2210) Beirut 2018}) 13. a4 {[%emt 0:01:49][%cal Ba2a4,Ba4a5][%mdl 32] Black must now prevent a5.} Qc4 {[%emt 0:01:35] [#] Strongly threatening ...Qxe2.} 14. Qc2 {[%emt 0:01:58]} d5 {[%emt 0:02:11]} 15. a5 {[%emt 0:01:24]} Nbd7 {[%emt 0:01:16]} (15... Na8 $5 {[%cal Rf6e4]}) 16. e5 {[%emt 0:02:52]} Ne4 {[%emt 0:00:02]} 17. Ra3 {[%emt 0:00:46]} (17. Qb1 $5 {[%cal Rc3e4]}) 17... Rc6 {[%emt 0:03:26]} 18. Qb1 {[%emt 0:01:13]} Rfc8 {[%emt 0:01:24]} 19. h4 {[%emt 0:02:02]} Bf8 {[%emt 0:01:27]} 20. Rd3 {[%emt 0:02:24]} (20. e6 $14 fxe6 21. Bf4) 20... e6 {[%emt 0:00:10]} 21. Ra1 {[%emt 0:00:01]} Bb4 {[%emt 0:01:41]} 22. Nd2 {[%emt 0:00:09]} (22. Bd2 $11) 22... Nxc3 $15 {[%emt 0:00:34]} 23. bxc3 {[%emt 0:00:08]} Qa6 $36 {[%emt 0:00:03][%mdl 2048] White is under pressure.} 24. Bb2 {[%emt 0:00:32]} Bxc3 {[%emt 0:00:49]} 25. Bxc3 {[%emt 0:00:03]} Rxc3 {[%emt 0:00:00]} 26. Rxc3 {[%emt 0:00:00]} Rxc3 {[%emt 0:00:00]} 27. Nf3 {[%emt 0:00:03][%cal Oh4h5]} Qc6 {[%emt 0:00:08]} 28. Kh2 {[%emt 0:00:22]} ({Better is} 28. Qd1 $15) 28... h6 {[%emt 0:00:08]} 29. Qb4 {[%emt 0:00:11]} Rc2 {[%emt 0:00:16]} 30. Kg3 {[%emt 0:00:47]} (30. Ra3 $142) 30... Qa6 {[%emt 0:00:28]} (30... Qc4 $142 31. Qxc4 dxc4) 31. Re1 $17 {[%emt 0:00:20]} Nf8 {[%emt 0:00:06]} 32. Qb3 {[%emt 0:00:13]} Rc7 {[%emt 0:00:16]} 33. Qe3 {[%emt 0:00:07]} Kh7 {[%emt 0:00:17]} 34. Qd2 {[%emt 0:00:29][%cal Oh4h5]} Qc4 {[%emt 0:00:08]} 35. Qf4 {[%emt 0:00:03]} Qc2 {[%emt 0:00:23]} 36. Qf6 {[%emt 0:00:14]} Rd7 {[%emt 0:00:02]} ({Black should play} 36... Kg8 $17) 37. Re3 {[%emt 0:00:14]} (37. Qf4 $1 $11 {remains equal.}) 37... Kg8 {[%emt 0:00:04]} 38. Qf4 {[%emt 0:00:06]} Kg7 {[%emt 0:00:09]} ({Black should try} 38... h5 $17) 39. Qf6+ $11 {[%emt 0:00:12]} Kg8 {[%emt 0:00:01]} (39... Kh7 $15) 40. Qf4 $1 $17 {[%emt 0:00:09]} Kg7 {[%emt 0:00:15]} (40... h5 $17) 41. Qf6+ $1 $11 {[%emt 0:00:09]} Kg8 {[%emt 0:00:01] Weighted Error Value: White=0.18 (very precise) /Black=0.19 (very precise)} 1/2-1/2

[Event "MCCT Chessable Masters 2022"]
[Site "Online"]
[Date "2022.05.16"]
[Round "5.5"]
[White "Ding, Liren"]
[Black "Wei, Yi"]
[Result "1/2-1/2"]
[ECO "E05"]
[WhiteElo "2806"]
[BlackElo "2727"]
[Annotator "TA"]
[PlyCount "67"]
[EventDate "2022.05.19"]
[EventType "tourn"]
[EventCountry "NET"]
[SourceTitle "playchess.com"]
[Source "ChessBase"]
[SourceQuality "1"]
[TimeControl "900+10"]

{[%evp 18,67,25,11,17,2,13,0,7,0,0,0,15,0,0,0,0,-1,6,6,6,1,3,0,0,0,0,0,0,0,0,0,-3,-3,0,0,0,0,0,0,0,0,6,0,7,1,7,0,7,0,7,0]} 1. c4 {[%emt 0:00:00]} Nf6 {[%emt 0:00:00]} 2. Nf3 {[%emt 0:00:11]} e6 {[%emt 0:00:05]} 3. g3 {[%emt 0:00:06]} d5 {[%emt 0:00:02]} 4. Bg2 {[%emt 0:00:01]} Be7 {[%emt 0:00:01]} 5. O-O {[%emt 0:00:03]} O-O {[%emt 0:00:01]} 6. d4 {[%emt 0:00:15]} dxc4 {[%emt 0:00:02]} 7. Qc2 {[%emt 0:00:01]} a6 {[%emt 0:00:01]} 8. a4 {[%emt 0:00:01]} Bd7 {[%emt 0:00:01]} 9. Qxc4 {[%emt 0:00:00]} Bc6 {[%emt 0:00:01]} 10. Bf4 {[%emt 0:00:10]} Bd6 {[%emt 0:00:01] The position is equal. E05: Open Catalan: 5 Nf3 Be7.} 11. Qc1 {[%emt 0:00:01]} a5 {[%emt 0:00:02]} 12. Bd2 {[%emt 0:00:07]} Qe7 {[%emt 0:00:39]} (12... Nbd7 13. Nc3 Ne4 14. Rd1 Ndf6 15. Qc2 Nxd2 16. Nxd2 Bxg2 17. Kxg2 Bb4 18. Nc4 c5 19. dxc5 Qc7 20. Ne4 Nxe4 21. Qxe4 Bxc5 22. Rd3 Rad8 23. Rad1 Rxd3 24. Rxd3 {½-½ (41) Ding,L (2799)-Wei,Y (2729) Hangzhou 2022}) 13. Nc3 {[%emt 0:00:39]} Na6 {[%emt 0:00:41]} 14. Qb1 {[%emt 0:02:42]} Bb4 {[%emt 0:00:05]} 15. Re1 {[%emt 0:00:13]} (15. Bg5 {is more complex.} h6 16. Bxf6 Qxf6 17. Ne5) 15... Bxf3 {[%emt 0:00:02]} 16. Bxf3 {[%emt 0:00:00]} Rad8 {[%emt 0:00:02] [#]} 17. Qc2 $146 {[%emt 0:02:57]} ({Predecessor:} 17. Bxb7 Nc5 18. dxc5 Rxd2 19. Ne4 Nxe4 20. Bxe4 Qf6 21. Bxh7+ Kh8 22. Bd3 Rxb2 23. Qc1 Bxe1 24. Qxe1 {0-1 (50) Fedoseev,V (2676)-Nakamura,H (2736) Chess.com INT 2020}) 17... Rxd4 {[%emt 0:04:26]} 18. Bxb7 {[%emt 0:00:02] This bishop pair is nice.} Nc5 {[%emt 0:00:22]} 19. Bf3 {[%emt 0:00:04]} Nb3 {[%emt 0:02:03]} 20. Qxb3 {[%emt 0:00:54]} Rxd2 {[%emt 0:00:03]} 21. Red1 {[%emt 0:00:01]} Rfd8 {[%emt 0:00:22]} 22. Rxd2 {[%emt 0:00:12]} Rxd2 {[%emt 0:00:01]} 23. Rd1 {[%emt 0:00:09]} Qd8 {[%emt 0:00:59] [#] aiming for ...Bxc3.} 24. Rxd2 {[%emt 0:00:35]} Qxd2 {[%emt 0:00:02]} 25. e3 {[%emt 0:00:01]} g5 {[%emt 0:01:55]} 26. Ne4 {[%emt 0:00:20]} Nxe4 {[%emt 0:00:02]} 27. Bxe4 $11 {[%emt 0:00:00][%mdl 4096] Endgame KQB-KQB} Kg7 {[%emt 0:00:02]} 28. Qc2 {[%emt 0:00:08]} Qxc2 {[%emt 0:00:01]} 29. Bxc2 {[%emt 0:00:00] KB-KB} h6 {[%emt 0:00:01]} 30. b3 {[%emt 0:00:02]} Kf6 {[%emt 0:00:01]} 31. Bd3 {[%emt 0:00:03]} Kg7 {[%emt 0:00:01]} 32. Bc2 {[%emt 0:00:01]} Kf6 {[%emt 0:00:00]} 33. Bd3 {[%emt 0:00:00]} Kg7 {[%emt 0:00:01]} 34. Bc2 {[%emt 0:00:00] An even fight not without its subleties.  Weighted Error Value: White=0.04 (flawless) /Black=0.03 (flawless)} 1/2-1/2